fUST/lending_fUST_20241117
["ID","MTS","AMOUNT","RATE_DAILY","PERIOD"]
[342412903,1731827436648,-556.667495,0.00025,7]
[342412904,1731827436658,-556.667495,0.00025,7]
[342412905,1731827436667,-556.667495,0.00025,7]
[342412906,1731827436677,-556.667495,0.00025,7]
[342412907,1731827436686,-556.667495,0.00025,7]
[342412908,1731827436695,-556.667495,0.00025,7]
[342412909,1731827436707,-556.667495,0.00025,7]
[342412910,1731827436717,-556.667495,0.00025,7]
[342412911,1731827436730,-151.0,0.00025,7]
[342412912,1731827436739,-151.0,0.00025,7]
[342412913,1731827436751,-151.0,0.00025,7]
[342412914,1731827436761,-151.0,0.00025,7]
[342412915,1731827436770,-151.0,0.00025,7]
[342412916,1731827436780,-151.0,0.00025,7]
[342412917,1731827436791,-166.623773,0.00025,7]
[342412918,1731827436800,-150.5438154,0.00025,2]
[342412919,1731827436810,-151.0,0.00025,7]
[342412920,1731827436819,-151.0,0.00025,7]
[342412921,1731827436831,-151.0,0.00025,7]
[342412922,1731827436841,-151.0,0.00025,7]
[342412923,1731827436851,-151.0,0.00025,7]
[342412924,1731827436860,-252.590369,0.00025,7]
[342412925,1731827436870,-500.0,0.00025,17]
[342412926,1731827436880,-151.0,0.00025,2]
[342412927,1731827436890,-303.05757821,0.00025,2]
[342412928,1731827436899,-992.26563929,0.00025011,2]
[342412929,1731827436909,-1126.79,0.00025016,2]
[342412930,1731827436918,-151.0,0.00025028,7]
[342412931,1731827436928,-1288.49582716,0.00025059,2]
[342412932,1731827436937,-151.0,0.00025073,7]
[342412933,1731827436947,-125390.36539562,0.0002509,2]
[342412934,1731827436956,-107024.43071456,0.0002509,2]
[342412935,1731827436965,-84390.36504236,0.0002509,2]
[342412936,1731827436976,-512.12295,0.0002509,7]
[342412937,1731827436985,-512.12295,0.0002509,7]
[342412938,1731827436994,-512.12295,0.0002509,7]
[342412939,1731827437004,-512.122949,0.0002509,7]
[342412940,1731827437014,-151.0,0.0002509,7]
[342412941,1731827437023,-151.0,0.0002509,7]
[342412942,1731827437032,-151.0,0.0002509,7]
[342412943,1731827437041,-169.078943,0.0002509,7]
[342412944,1731827437050,-170.739923,0.0002509,7]
[342412945,1731827437060,-151.0,0.0002509,7]
[342412946,1731827437070,-151.0,0.0002509,7]
[342412947,1731827437079,-151.0,0.0002509,7]
[342412948,1731827437088,-151.0,0.0002509,7]
[342412949,1731827437098,-151.0,0.0002509,7]
[342412950,1731827437107,-151.0,0.0002509,7]
[342412951,1731827437117,-151.0,0.0002509,7]
[342412952,1731827437126,-151.0,0.0002509,7]
[342412953,1731827437136,-151.0,0.0002509,7]
[342412954,1731827437145,-151.0,0.0002509,7]
[342412955,1731827437154,-151.0,0.0002509,7]
[342412956,1731827437164,-151.0,0.0002509,7]
[342412957,1731827437173,-151.0,0.0002509,7]
[342412958,1731827437183,-345.3069,0.0002509,7]
[342412959,1731827437192,-345.3069,0.0002509,7]
[342412960,1731827437201,-345.3069,0.0002509,7]
[342412961,1731827437211,-151.0,0.0002509,7]
[342412962,1731827437221,-151.0,0.0002509,7]
[342412963,1731827437231,-151.0,0.0002509,7]
[342412964,1731827437241,-345.3069,0.0002509,7]
[342412965,1731827437250,-345.3069,0.0002509,7]
[342412966,1731827437259,-345.3069,0.0002509,7]
[342412967,1731827437269,-308.885482,0.0002509,7]
[342412968,1731827437278,-308.885482,0.0002509,7]
[342412969,1731827437287,-308.885482,0.0002509,7]
[342412970,1731827437297,-308.885482,0.0002509,7]
[342412971,1731827437306,-308.885482,0.0002509,7]
[342412972,1731827437316,-308.885482,0.0002509,7]
[342412973,1731827437325,-567.482937,0.0002509,7]
[342412974,1731827437335,-567.482937,0.0002509,7]
[342412975,1731827437344,-567.482937,0.0002509,7]
[342412976,1731827437354,-567.482937,0.0002509,7]
[342412977,1731827437363,-567.482937,0.0002509,7]
[342412978,1731827437372,-567.482937,0.0002509,7]
[342412979,1731827437381,-583.661739,0.0002509,7]
[342412980,1731827437390,-583.661739,0.0002509,7]
[342412981,1731827437399,-583.661739,0.0002509,7]
[342412982,1731827437409,-583.661739,0.0002509,7]
[342412983,1731827437418,-583.661739,0.0002509,7]
[342412984,1731827437427,-583.661739,0.0002509,7]
[342412985,1731827437436,-151.562207,0.0002509,7]
[342412988,1731827437445,-151.562207,0.0002509,7]
[342412989,1731827437454,-151.562207,0.0002509,7]
[342412990,1731827437463,-151.562207,0.0002509,7]
[342412991,1731827437476,-151.562207,0.0002509,7]
[342412992,1731827437485,-151.562207,0.0002509,7]
[342412993,1731827437494,-320.736655,0.0002509,7]
[342412994,1731827437504,-320.736655,0.0002509,7]
[342412995,1731827437513,-320.736655,0.0002509,7]
[342412996,1731827437522,-320.736655,0.0002509,7]
[342412997,1731827437531,-320.736655,0.0002509,7]
[342412998,1731827437540,-320.736655,0.0002509,7]
[342412999,1731827437549,-320.736655,0.0002509,7]
[342413000,1731827437559,-320.736655,0.0002509,7]
[342413001,1731827437568,-270.117859,0.0002509,7]
[342413002,1731827437577,-270.117859,0.0002509,7]
[342413003,1731827437586,-270.117859,0.0002509,7]
[342413004,1731827437596,-665.944351,0.0002509,7]
[342413005,1731827437605,-665.944351,0.0002509,7]
[342413006,1731827437615,-665.944351,0.0002509,7]
[342413007,1731827437625,-270.117859,0.0002509,7]
[342413008,1731827437634,-270.117859,0.0002509,7]
[342413009,1731827437643,-270.117859,0.0002509,7]
[342413010,1731827437653,-665.944351,0.0002509,7]
[342413012,1731827437663,-665.944351,0.0002509,7]
[342413014,1731827437672,-665.944351,0.0002509,7]
[342413016,1731827437682,-230.508403,0.0002509,7]
[342413018,1731827437691,-230.508403,0.0002509,7]
[342413020,1731827437700,-230.508403,0.0002509,7]
[342413022,1731827437710,-230.508403,0.0002509,7]
[342413023,1731827437719,-230.508403,0.0002509,7]
[342413024,1731827437733,-230.508403,0.0002509,7]
[342413025,1731827437742,-230.508403,0.0002509,7]
[342413026,1731827437755,-230.508403,0.0002509,7]
[342413027,1731827437765,-386.544681,0.0002509,7]
[342413028,1731827437775,-184.215811,0.0002509,7]
[342413029,1731827437784,-386.544681,0.0002509,7]
[342413030,1731827437795,-184.215811,0.0002509,7]
[342413031,1731827437806,-184.215811,0.0002509,7]
[342413032,1731827437817,-386.544681,0.0002509,7]
[342413033,1731827437829,-386.544681,0.0002509,7]
[342413035,1731827437839,-184.215811,0.0002509,7]
[342413037,1731827437849,-386.544681,0.0002509,7]
[342413039,1731827437859,-386.544681,0.0002509,7]
[342413041,1731827437870,-184.215811,0.0002509,7]
[342413043,1731827437880,-184.215811,0.0002509,7]
[342413045,1731827437890,-1028.824836,0.0002509,7]
[342413047,1731827437899,-1028.824836,0.0002509,7]
[342413049,1731827437909,-1028.824836,0.0002509,7]
[342413051,1731827437919,-1028.824836,0.0002509,7]
[342413053,1731827437929,-1028.824836,0.0002509,7]
[342413055,1731827437939,-1028.824836,0.0002509,7]
[342413057,1731827437950,-151.0,0.0002509,7]
[342413059,1731827437960,-151.0,0.0002509,7]
[342413061,1731827437974,-216.263953,0.0002509,7]
[342413063,1731827437984,-151.0,0.0002509,7]
[342413065,1731827437994,-216.263953,0.0002509,7]
[342413067,1731827438003,-216.263953,0.0002509,7]
[342413069,1731827438013,-690.981586,0.0002509,7]
[342413071,1731827438022,-216.263953,0.0002509,7]
[342413073,1731827438032,-690.981586,0.0002509,7]
[342413075,1731827438041,-690.981586,0.0002509,7]
[342413077,1731827438051,-690.981586,0.0002509,7]
[342413079,1731827438061,-216.263953,0.0002509,7]
[342413081,1731827438071,-216.263953,0.0002509,7]
[342413083,1731827438080,-216.263953,0.0002509,7]
[342413085,1731827438089,-216.263953,0.0002509,7]
[342413087,1731827438099,-690.981586,0.0002509,7]
[342413089,1731827438108,-690.981586,0.0002509,7]
[342413091,1731827438118,-690.981586,0.0002509,7]
[342413093,1731827438127,-690.981586,0.0002509,7]
[342413095,1731827438137,-1602.041249,0.0002509,7]
[342413097,1731827438147,-1602.041249,0.0002509,7]
[342413099,1731827438157,-1602.041249,0.0002509,7]
[342413101,1731827438166,-1602.041249,0.0002509,7]
[342413103,1731827438176,-1602.041249,0.0002509,7]
[342413106,1731827438186,-1602.041249,0.0002509,7]
[342413108,1731827438195,-151.0,0.0002509,7]
[342413110,1731827438205,-151.0,0.0002509,7]
[342413112,1731827438214,-151.0,0.0002509,7]
[342413113,1731827438226,-151.0,0.0002509,7]
[342413115,1731827438236,-151.0,0.0002509,7]
[342413117,1731827438245,-151.0,0.0002509,7]
[342413119,1731827438255,-151.0,0.0002509,7]
[342413120,1731827438264,-151.0,0.0002509,7]
[342413121,1731827438273,-151.0,0.0002509,7]
[342413122,1731827438282,-151.0,0.0002509,7]
[342413123,1731827438292,-151.0,0.0002509,7]
[342413124,1731827438301,-151.0,0.0002509,7]
[342413125,1731827438311,-151.0,0.0002509,7]
[342413126,1731827438320,-154.274626,0.0002509,7]
[342413127,1731827438330,-1376.619474,0.0002509,7]
[342413128,1731827438339,-1376.619474,0.0002509,7]
[342413129,1731827438348,-1376.619474,0.0002509,7]
[342413130,1731827438357,-1376.619474,0.0002509,7]
[342413131,1731827438366,-1376.619474,0.0002509,7]
[342413132,1731827438376,-1376.619474,0.0002509,7]
[342413133,1731827438385,-1376.619474,0.0002509,7]
[342413134,1731827438394,-1376.619474,0.0002509,7]
[342413135,1731827438403,-151.0,0.0002509,7]
[342413136,1731827438413,-151.0,0.0002509,7]
[342413137,1731827438422,-151.0,0.0002509,7]
[342413138,1731827438431,-151.0,0.0002509,7]
[342413139,1731827438440,-151.0,0.0002509,7]
[342413140,1731827438450,-151.0,0.0002509,7]
[342413141,1731827438459,-151.0,0.0002509,7]
[342413142,1731827438468,-151.0,0.0002509,7]
[342413143,1731827438483,-151.0,0.0002509,7]
[342413144,1731827438492,-222.131587,0.0002509,7]
[342413145,1731827438502,-151.0,0.0002509,7]
[342413146,1731827438511,-151.0,0.0002509,7]
[342413147,1731827438520,-151.0,0.0002509,7]
[342413148,1731827438530,-151.0,0.0002509,7]
[342413149,1731827438539,-151.0,0.0002509,7]
[342413150,1731827438548,-151.0,0.0002509,7]
[342413151,1731827438557,-210.948418,0.0002509,7]
[342413152,1731827438566,-600.761249,0.0002509,7]
[342413153,1731827438576,-600.761249,0.0002509,7]
[342413154,1731827438586,-600.761249,0.0002509,7]
[342413155,1731827438595,-600.761249,0.0002509,7]
[342413156,1731827438604,-600.761249,0.0002509,7]
[342413157,1731827438613,-600.761249,0.0002509,7]
[342413158,1731827438623,-600.761249,0.0002509,7]
[342413159,1731827438632,-600.761249,0.0002509,7]
[342413160,1731827438641,-556.667495,0.0002509,7]
[342413161,1731827438650,-556.667495,0.0002509,7]
[342413162,1731827438659,-556.667495,0.0002509,7]
[342413163,1731827438669,-556.667495,0.0002509,7]
[342413164,1731827438679,-556.667495,0.0002509,7]
[342413165,1731827438688,-556.667495,0.0002509,7]
[342413166,1731827438697,-556.667495,0.0002509,7]
[342413167,1731827438706,-556.667495,0.0002509,7]
[342413168,1731827438715,-151.0,0.0002509,7]
[342413169,1731827438731,-151.0,0.0002509,7]
[342413170,1731827438740,-151.0,0.0002509,7]
[342413171,1731827438752,-151.0,0.0002509,7]
[342413172,1731827438762,-151.0,0.0002509,7]
[342413173,1731827438771,-151.0,0.0002509,7]
[342413174,1731827438781,-151.0,0.0002509,7]
[342413175,1731827438791,-151.0,0.0002509,7]
[342413176,1731827438801,-155.308944,0.000251,13]
[342413177,1731827438810,-150.112233,0.000251,20]
[342413178,1731827438819,-150.112233,0.000251,18]
[342413179,1731827438832,-150.112233,0.000251,16]
[342413180,1731827438843,-150.112233,0.000251,16]
[342413181,1731827438853,-992.26563929,0.00025122,2]
[342413182,1731827438864,-200.0,0.00025146,4]
[342413183,1731827438874,-335.63902374,0.0002515,2]
[342413184,1731827438884,-843.0,0.00025194,14]
[342413185,1731827438894,-992.26563929,0.00025233,2]
[342413186,1731827438904,-465.1279669,0.00025236,2]
[342413187,1731827438914,-182.070731,0.00025246,7]
[342413188,1731827438923,-155.921565,0.00025246,7]
[342413189,1731827438933,-345.3069,0.0002525,7]
[342413190,1731827438942,-345.3069,0.0002525,7]
[342413191,1731827438952,-303.04242473,0.0002525,2]
[342413192,1731827438962,-303.05757821,0.0002525,2]
[342413193,1731827438975,-420.0,0.00025253,2]
[342413194,1731827438985,-308.885482,0.00025266,7]
[342413195,1731827438996,-308.885482,0.00025266,7]
[342413196,1731827439006,-151.562207,0.00025266,7]
[342413197,1731827439016,-151.562207,0.00025266,7]
[342413198,1731827439027,-184.215811,0.00025266,7]
[342413199,1731827439037,-184.215811,0.00025266,7]
[342413200,1731827439047,-1602.041249,0.00025266,7]
[342413201,1731827439058,-1602.041249,0.00025266,7]
[342413202,1731827439068,-165.12632614,0.00025274,2]
[342413203,1731827439078,-1126.79,0.0002529,2]
[342413204,1731827439087,-567.482937,0.000253,7]
[342413205,1731827439097,-567.482937,0.000253,7]
[342413206,1731827439106,-155.29,0.000253,31]
[342413207,1731827439116,-155.29,0.000253,31]
[342413208,1731827439126,-556.667495,0.000253,7]
[342413209,1731827439136,-556.66749,0.000253,7]
[342413210,1731827439146,-270.117859,0.00025344,7]
[342413211,1731827439155,-665.944351,0.00025344,7]
[342413212,1731827439165,-270.117859,0.00025344,7]
[342413213,1731827439175,-665.944351,0.00025344,7]
[342413214,1731827439184,-386.544681,0.00025344,7]
[342413215,1731827439194,-386.544681,0.00025344,7]
[342413216,1731827439203,-1028.824836,0.00025344,7]
[342413217,1731827439212,-1028.824836,0.00025344,7]
[342413218,1731827439226,-151.0,0.00025344,7]
[342413219,1731827439236,-992.26563929,0.00025344,2]
[342413220,1731827439246,-583.661739,0.00025369,7]
[342413221,1731827439255,-583.661739,0.00025369,7]
[342413222,1731827439265,-2171.33221238,0.00025369,21]
[342413223,1731827439275,-200.0,0.00025392,4]
[342413224,1731827439285,-501.42126683,0.00025421,2]
[342413225,1731827439295,-745.45553639,0.00025421,2]
[342413226,1731827439305,-1086.08616041,0.00025421,2]
[342413227,1731827439315,-1001.29301334,0.00025421,2]
[342413228,1731827439324,-1001.53545382,0.00025421,2]
[342413229,1731827439334,-1000.0,0.00025421,2]
[342413230,1731827439343,-501.12496102,0.00025421,2]
[342413231,1731827439353,-1000.35496912,0.00025421,2]
[342413232,1731827439362,-1016.58048574,0.00025421,2]
[342413233,1731827439371,-1122.72789728,0.00025421,2]
[342413234,1731827439381,-151.0,0.00025421,7]
[342413235,1731827439390,-992.26563929,0.00025456,2]
[342413236,1731827439400,-900.0,0.00025469,3]
[342413237,1731827439410,-4373.89413804,0.0002547,3]
[342413238,1731827439419,-1288.49582716,0.0002548,2]
[342413239,1731827439430,-303.04242473,0.000255,2]
[342413240,1731827439439,-303.05757821,0.000255,2]
[342413241,1731827439449,-1010.78011023,0.00025521,2]
[342413242,1731827439458,-1000.44406208,0.00025521,2]
[342413243,1731827439468,-604.33114657,0.00025521,2]
[342413244,1731827439481,-1000.79832034,0.00025521,2]
[342413245,1731827439491,-1000.0,0.00025521,2]
[342413246,1731827439501,-1002.19648279,0.00025521,2]
[342413248,1731827439510,-1000.0,0.00025521,2]
[342413249,1731827439520,-1000.77627675,0.00025521,2]
[342413250,1731827439529,-151.0,0.00025521,7]
[342413251,1731827439539,-151.0,0.00025521,7]
[342413252,1731827439548,-1376.619474,0.00025521,7]
[342413253,1731827439558,-1376.619474,0.00025521,7]
[342413254,1731827439567,-151.0,0.00025521,7]
[342413255,1731827439577,-151.0,0.00025521,7]
[342413256,1731827439587,-600.761249,0.00025521,7]
[342413257,1731827439596,-600.761249,0.00025521,7]
[342413259,1731827439606,-151.0,0.00025521,7]
[342413260,1731827439616,-151.0,0.00025537,7]
[342413262,1731827439626,-200.63747548,0.00025548,2]
[342413263,1731827439636,-202.32238477,0.00025548,2]
[342413264,1731827439646,-214.93629819,0.00025548,2]
[342413265,1731827439656,-1126.79,0.00025564,2]
[342413266,1731827439666,-992.26563929,0.00025567,2]
[342413267,1731827439676,-156.63231,0.000256,11]
[342413268,1731827439686,-200.0,0.00025639,4]
[342413269,1731827439695,-992.26563929,0.00025678,2]
[342413271,1731827439705,-151.0,0.00025682,7]
[342413273,1731827439715,-151.0,0.00025682,7]
[342413275,1731827439726,-151.0,0.00025682,7]
[342413276,1731827439736,-308.885482,0.00025682,7]
[342413277,1731827439746,-308.885482,0.00025682,7]
[342413278,1731827439760,-151.562207,0.00025682,7]
[342413279,1731827439770,-151.562207,0.00025682,7]
[342413280,1731827439780,-320.736655,0.00025682,7]
[342413281,1731827439791,-320.736655,0.00025682,7]
[342413283,1731827439800,-230.508403,0.00025682,7]
[342413285,1731827439811,-230.508403,0.00025682,7]
[342413286,1731827439821,-184.215811,0.00025682,7]
[342413287,1731827439833,-184.215811,0.00025682,7]
[342413288,1731827439842,-216.263953,0.00025682,7]
[342413289,1731827439852,-690.981586,0.00025682,7]
[342413290,1731827439862,-216.263953,0.00025682,7]
[342413291,1731827439872,-690.981586,0.00025682,7]
[342413292,1731827439882,-1602.041249,0.00025682,7]
[342413293,1731827439891,-1602.041249,0.00025682,7]
[342413294,1731827439901,-151.0,0.00025682,7]
[342413295,1731827439911,-5000.0,0.00025682,7]
[342413296,1731827439921,-5000.0,0.00025682,5]
[342413297,1731827439931,-5000.0,0.00025682,3]
[342413298,1731827439941,-5000.0,0.00025682,6]
[342413299,1731827439951,-5000.0,0.00025682,2]
[342413300,1731827439960,-150.112233,0.000257,14]
[342413301,1731827439973,-155.29,0.000257,31]
[342413302,1731827439983,-155.29,0.000257,31]
[342413303,1731827439993,-303.04242473,0.0002575,2]
[342413304,1731827440003,-303.05757821,0.0002575,2]
[342413305,1731827440013,-992.26563929,0.00025789,2]
[342413306,1731827440022,-270.117859,0.00025789,7]
[342413307,1731827440031,-665.944351,0.00025789,7]
[342413308,1731827440041,-270.117859,0.00025789,7]
[342413309,1731827440051,-665.944351,0.00025789,7]
[342413310,1731827440061,-386.544681,0.00025789,7]
[342413311,1731827440071,-386.544681,0.00025789,7]
[342413312,1731827440080,-1028.824836,0.00025789,7]
[342413313,1731827440091,-1028.824836,0.00025789,7]
[342413314,1731827440100,-151.0,0.00025789,7]
[342413315,1731827440111,-151.0,0.00025789,7]
[342413316,1731827440121,-277.192453,0.00025789,7]
[342413317,1731827440130,-1376.619474,0.00025789,7]
[342413318,1731827440141,-1376.619474,0.00025789,7]
[342413319,1731827440150,-151.0,0.00025789,7]
[342413320,1731827440160,-151.0,0.00025789,7]
[342413321,1731827440171,-600.761249,0.00025789,7]
[342413322,1731827440181,-600.761249,0.00025789,7]
[342413323,1731827440191,-151.0,0.00025789,7]
[342413324,1731827440200,-191.51,0.0002579,7]
[342413325,1731827440211,-150.112233,0.000258,15]
[342413326,1731827440223,-150.04258619,0.00025822,2]
[342413327,1731827440233,-201.461748,0.00025822,2]
[342413328,1731827440242,-345.3069,0.00025822,7]
[342413329,1731827440252,-345.3069,0.00025822,7]
[342413330,1731827440261,-567.482937,0.00025822,7]
[342413331,1731827440272,-567.482937,0.00025822,7]
[342413332,1731827440282,-583.661739,0.00025822,7]
[342413333,1731827440292,-583.661739,0.00025822,7]
[342413334,1731827440302,-151.0,0.00025822,7]
[342413335,1731827440312,-1126.79,0.00025838,2]
[342413336,1731827440322,-376.75999799,0.00025873,2]
[342413337,1731827440331,-500.0,0.00025873,2]
[342413338,1731827440342,-1000.0,0.00025885,2]
[342413339,1731827440352,-200.0,0.00025886,4]
[342413340,1731827440362,-74454.53701549,0.0002589,2]
[342413341,1731827440386,-5131.33961625,0.0002589,2]
[342413342,1731827442019,-850.19932674,0.00024739,2]
[342413343,1731827442029,-500.0,0.00024873,2]
[342413344,1731827442039,-500.0,0.00024873,2]
[342413345,1731827442049,-1023.0,0.00025158,15]
[342413346,1731827442058,-509.25080049,0.00025421,2]
[342413347,1731827442067,-1001.46930507,0.00025421,2]
[342413348,1731827442076,-290.53748732,0.00025621,2]
[342413349,1731827442086,-20867.35221424,0.0002589,2]
[342413350,1731827442095,-151.0,0.0002589,7]
[342413351,1731827442104,-151.0,0.0002589,7]
[342413352,1731827442113,-151.0,0.0002589,7]
[342413353,1731827442123,-151.0,0.0002589,7]
[342413354,1731827442132,-345.3069,0.0002589,7]
[342413355,1731827442142,-345.3069,0.0002589,7]
[342413356,1731827442150,-308.885482,0.0002589,7]
[342413357,1731827442160,-308.885484,0.0002589,7]
[342413358,1731827442169,-567.482937,0.0002589,7]
[342413359,1731827442178,-567.482937,0.0002589,7]
[342413360,1731827442187,-583.661739,0.0002589,7]
[342413361,1731827442196,-583.661739,0.0002589,7]
[342413362,1731827442206,-151.562207,0.0002589,7]
[342413363,1731827442215,-151.562212,0.0002589,7]
[342413364,1731827442225,-320.736655,0.0002589,7]
[342413365,1731827442234,-320.736655,0.0002589,7]
[342413366,1731827442244,-270.117859,0.0002589,7]
[342413367,1731827442253,-665.944351,0.0002589,7]
[342413368,1731827442262,-270.117859,0.0002589,7]
[342413369,1731827442271,-665.944351,0.0002589,7]
[342413370,1731827442280,-230.508403,0.0002589,7]
[342413371,1731827442289,-230.508405,0.0002589,7]
[342413372,1731827442298,-184.215811,0.0002589,7]
[342413373,1731827442307,-386.544681,0.0002589,7]
[342413374,1731827442317,-386.544681,0.0002589,7]
[342413375,1731827442326,-184.215802,0.0002589,7]
[342413376,1731827442335,-1028.824836,0.0002589,7]
[342413377,1731827442344,-1028.824836,0.0002589,7]
[342413379,1731827442354,-151.0,0.0002589,7]
[342413381,1731827442363,-216.263953,0.0002589,7]
[342413383,1731827442372,-690.981586,0.0002589,7]
[342413385,1731827442381,-216.263953,0.0002589,7]
[342413387,1731827442390,-690.981587,0.0002589,7]
[342413389,1731827442400,-1602.041249,0.0002589,7]
[342413391,1731827442409,-1602.041257,0.0002589,7]
[342413393,1731827442419,-151.0,0.0002589,7]
[342413395,1731827442429,-151.0,0.0002589,7]
[342413397,1731827442438,-1376.619474,0.0002589,7]
[342413398,1731827442448,-1376.619464,0.0002589,7]
[342413399,1731827442457,-151.0,0.0002589,7]
[342413400,1731827442466,-151.0,0.0002589,7]
[342413401,1731827442479,-600.761249,0.0002589,7]
[342413402,1731827442489,-600.761256,0.0002589,7]
[342413403,1731827442499,-151.0,0.0002589,7]
[342413404,1731827442509,-596.0,0.0002589,2]
[342413405,1731827442519,-992.26563929,0.000259,2]
[342413407,1731827442529,-1288.49582716,0.000259,2]
[342413408,1731827442539,-1000.0,0.00025918,2]
[342413409,1731827442549,-1000.0,0.00025922,2]
[342413410,1731827442558,-1000.0,0.00025943,2]
[342413411,1731827442568,-1000.0,0.00025944,2]
[342413412,1731827442577,-1000.0,0.0002595,2]
[342413413,1731827442587,-303.38645198,0.00025973,2]
[342413415,1731827442597,-1000.0,0.00025987,2]
[342413416,1731827442608,-925.56045049,0.00025994,2]
[342413417,1731827442617,-637.29214541,0.00025999,30]
[342413419,1731827442775,-2201.43619551,0.00025999,30]
[342413424,1731827442926,-2161.27165908,0.00025999,30]
[342413425,1731827442935,-668.62650657,0.00026,2]
[342413426,1731827442947,-668.62650657,0.00026,2]
[342413427,1731827442956,-2736.75969104,0.00026,2]
[342413428,1731827442966,-1791.62659906,0.00026,2]
[342413429,1731827442980,-365.808,0.00026,2]
[342413430,1731827442991,-1546.78600054,0.00026,2]
[342413432,1731827443685,-1000.0,0.000248,2]
[342413433,1731827443695,-949.9724467,0.00024999,2]
[342413434,1731827443706,-985.713,0.00025158,15]
[342413435,1731827443716,-1379.41671361,0.00026,2]
[342413436,1731827443728,-2000.0,0.00026,2]
[342413437,1731827443738,-400.0,0.00026,14]
[342413438,1731827443756,-400.0,0.00026,10]
[342413439,1731827443776,-528.6751736,0.00026,2]
[342413440,1731827443794,-1000.0,0.00026,2]
[342413441,1731827443803,-1000.0,0.00026,2]
[342413442,1731827443812,-1000.0,0.00026,2]
[342413443,1731827443822,-1000.0,0.00026,2]
[342413444,1731827443831,-1000.0,0.00026,2]
[342413445,1731827443840,-1000.0,0.00026,2]
[342413446,1731827443849,-704.7985825,0.00026,2]
[342413447,1731827443858,-1000.0,0.00026,2]
[342413448,1731827443867,-159.0,0.00026,2]
[342413449,1731827443877,-215.33311305,0.00026,60]
[342413450,1731827443886,-500.0,0.00026,60]
[342413451,1731827443896,-159.87154073,0.00026,60]
[342413452,1731827443905,-1113.7538801,0.00026,7]
[342413453,1731827443915,-151.0,0.00026,7]
[342413454,1731827443923,-151.0,0.00026,7]
[342413455,1731827443933,-151.0,0.00026,7]
[342413456,1731827443942,-151.0,0.00026,7]
[342413457,1731827443951,-269.178856,0.00026,7]
[342413458,1731827443961,-500.0,0.00026,60]
[342413459,1731827443970,-500.21290886,0.00026,60]
[342413460,1731827443983,-500.0,0.00026,60]
[342413461,1731827443992,-500.0,0.00026,60]
[342413462,1731827444002,-500.0,0.00026,60]
[342413463,1731827444011,-500.0,0.00026,60]
[342413464,1731827444020,-500.0,0.00026,60]
[342413465,1731827444030,-500.0,0.00026,60]
[342413466,1731827444039,-500.0,0.00026,60]
[342413467,1731827444048,-337.5305762,0.00026,60]
[342413468,1731827444057,-605.4,0.00026,31]
[342413469,1731827444067,-500.0,0.00026,60]
[342413470,1731827444077,-500.0,0.00026,60]
[342413471,1731827444086,-500.0,0.00026,60]
[342413472,1731827444095,-500.0,0.00026,60]
[342413473,1731827444105,-505.34848124,0.00026,60]
[342413474,1731827444114,-542.02614629,0.00026,60]
[342413475,1731827444124,-577.71275425,0.00026,60]
[342413476,1731827444133,-101.79005324,0.00026,60]
[342413508,1731828190840,400.0,0.00013973,2]
[342413640,1731828638270,-572.03185518,0.000199,2]
[342413641,1731828638279,-2162.75274363,0.000199,2]